Cogmind - Beta 13 @@@ ROGUE MODE // 2024.04.05 @ 04:05:40 Player: Bean Result: Destroyed by H-55 Commando with Gauss Rifle Performance ------------- Evolutions (3) 1500 Regions Visited (5) 1000 Robots Destroyed (53) 265 Value Destroyed (1379) 1379 Prototype IDs (1) 20 Alien Tech Used (0) 0 Bonus (-280) -280 TOTAL SCORE: 3884 Bonus ------- Friendly Fire -280 Cogmind --------- Core Integrity 0/700 Matter 142/300 Energy 75/100 System Corruption 20% Temperature Cool (0) Movement Core (1450) Ox28 Location -7/Factory Parts ------- > --- POWER (1) -------- (None) > --- PROPULSION (3) --- (None) > --- UTILITY (5) ------ Huge Storage Unit > --- WEAPON (4) ------- Greatsword > --- INVENTORY (25) --- Light Nuclear Core High-capacity Matter Pod (200) Terrain Scanner Targeting Computer Hardlight Generator Minigun Flak Gun Flak Gun Peak State ------------ > --- POWER ------------ Light Nuclear Core > --- PROPULSION ------- Light Treads Armored Treads Armored Treads > --- UTILITY ---------- Improved Heat Sink Huge Storage Unit Experimental Sensor Array Reactive Plating Hardlight Generator > --- WEAPON ----------- Flak Gun Flak Gun Flak Gun Flak Gun > --- INVENTORY -------- Light Treads Light Treads High-capacity Matter Pod Terrain Scanner Targeting Computer Improved Light Armor Plating Improved Light Armor Plating Scrap Shield System Shield Shock Bomb Launcher Greatsword Greatsword Greatsword Greatsword [Rating: 50] Favorites ----------- Power Ion Engine Engine Ion Engine Power Core Light Nuclear Core Propulsion Light Treads Treads Light Treads Wheel Subdweller Monowheel Utility Huge Storage Unit Device Experimental Sensor Array Storage Huge Storage Unit Processor Transport Network Coupler Hackware System Shield Protection Reactive Plating Weapon Flak Gun Energy Gun Medium Laser Ballistic Gun Flak Gun Launcher Grenade Launcher Slashing Weapon Greatsword Build | -11 -10 -10 -10 -8 -7 ------- Run | Yrd Mat Min Sub Mat Fac Slots Evolved 6 | . . . . 4 2 Power . | . . . . . . Propulsion 1 | . . . . 1 . Utility 3 | . . . . 2 1 Weapon 2 | . . . . 1 1 Parts Attached 56 | 6 4 1 7 17 21 Power 5 | 1 . . 2 1 1 Engine 2 | 1 . . 1 . . Core 3 | . . . 1 1 1 Reactor . | . . . . . . Propulsion 11 | 2 . . 3 4 2 Treads 8 | 2 . . . 4 2 Leg . | . . . . . . Wheel 3 | . . . 3 . . Hover . | . . . . . . Flight . | . . . . . . Utility 15 | 1 2 1 . 3 8 Device 6 | . . . . 3 3 Storage 2 | 1 . 1 . . . Processor 1 | . 1 . . . . Hackware 1 | . . . . . 1 Protection 5 | . 1 . . . 4 Artifact . | . . . . . . Weapon 25 | 2 2 . 2 9 10 Energy Gun 8 | 2 . . 2 4 . Energy Cannon . | . . . . . . Ballistic Gun 9 | . . . . 4 5 Ballistic Cannon . | . . . . . . Launcher 3 | . 2 . . . 1 Special Weapon . | . . . . . . Impact Weapon . | . . . . . . Slashing Weapon 5 | . . . . 1 4 Piercing Weapon . | . . . . . . Special Melee Weapon . | . . . . . . Unidentified Prototypes 1 | . . . . 1 . Parts Lost 30 | . . . 4 6 20 Power 4 | . . . 1 1 2 Propulsion 8 | . . . 1 2 5 Utility 8 | . . . . 1 7 Weapon 10 | . . . 2 2 6 Highest Loss Streak 14 | . . . 2 4 14 To Critical Strikes 2 | . . . 1 . 1 Average Slot Usage (%) 93 | . 99 100 97 89 89 Engine 5 | . 14 14 7 . . Core 4 | . . . 6 6 6 Treads 20 | . 28 28 11 18 20 Wheel 4 | . . . 15 1 . Device 8 | . . . . 17 14 Storage 10 | . 14 14 14 9 7 Processor 8 | . 10 14 14 9 1 Protection 2 | . 3 . . . 6 Energy Gun 5 | . 7 . 15 5 . Ballistic Gun 11 | . . . . 20 26 Launcher 9 | . 20 28 11 . . Naked Turns . | . . . . . . Heaviest Build 118 | 14 16 91 102 107 118 Greatest Support 60 | 40 40 40 40 60 60 Greatest Overweight (x) 33 | . . 2 4 5 33 Average Overweight (x) 1 | . . 1 2 1 1 Largest Inventory Capacity 25 | 8 8 25 25 25 25 Average Capacity 16 | 7 8 19 25 25 25 Most Carried 25 | 5 7 7 10 21 25 Average Carried 7 | . 3 5 8 15 19 Final Capacity 25 | 8 8 25 25 25 25 Final Carried 21 | . 5 6 9 21 8 Class Distribution -------------------- 64% | Mutant 13% | Skirmisher 11% | Tank 8% | Scavenger-Mutant Dominant Class ---------------- Mutant | -10/Materials Mutant | -10/Mines Scavenger-Mutant | -10/Subcaves Skirmisher | -8/Materials Tank | -7/Factory Resources | -11 -10 -10 -10 -8 -7 ----------- Run | Yrd Mat Min Sub Mat Fac Matter Collected 1606 | 252 100 78 308 325 543 Remotely 50 | . . . . 50 . Salvage Created 1497 | . 223 . 280 563 431 Parts 102 | . 22 . 21 32 27 Haulers Intercepted 3 | . 1 . . 2 . Recyclers Shooed 5 | . . . . 1 4 Parts Field Recycled . | . . . . . . Retrieved Matter . | . . . . . . Parts Self-Destructed 10 | . . . 10 . . Prevented . | . . . . . . Kills | -11 -10 -10 -10 -8 -7 ------- Run | Yrd Mat Min Sub Mat Fac Combat Hostiles Destroyed 32 | . 4 . 9 11 8 Melee 2 | . . . . 1 1 Guns 15 | . 1 . . 10 4 AOE 15 | . 3 . 9 . 3 Classes Destroyed 12 | . 6 . 2 2 2 Worker 7 | . . . . 1 6 Builder 2 | . 1 . . 1 . Hauler 3 | . 1 . . 2 . Recycler 3 | . 1 . . 1 1 Watcher 5 | . 1 . . 2 2 Swarmer 8 | . 3 . . 3 2 Grunt 5 | . 1 . . 2 2 Brawler 1 | . . . . . 1 Sentry 5 | . . . . 4 1 Hunter 3 | . . . . 2 1 Programmer 1 | . . . . . 1 Subdweller 9 | . . . 9 . . Guerrilla 1 | . . . 1 . . Best Kill Streak 9 | . 5 . 7 4 9 Combat Bots Only 7 | . 3 . 7 3 4 Max Kills in Single Turn 6 | . 5 . 3 2 6 Gunslinging . | . . . . . . Exploded 3 | . 3 . 2 . 3 Melee 1 | . . . . 1 1 Uniques/NPCs Destroyed . | . . . . . . Combat | -11 -10 -10 -10 -8 -7 -------- Run | Yrd Mat Min Sub Mat Fac Hostile Shots Fired 485 | . 5 . 23 68 389 Missed 156 | . 1 . 7 26 122 Damage Taken 5040 | . 40 . 588 615 3797 Core 919 | . . . 102 106 711 Absorbed by Shields . | . . . . . . Ignored by Resistances 241 | . . . . . 241 Core Remaining (%) 79 | 100 . . 59 80 . Volleys Fired 79 | . 8 . 9 40 22 Largest 4 | . 2 . 2 3 4 Hottest 183 | . 90 . 120 183 112 Shots Fired 211 | . 16 . 17 89 89 Gun 194 | . 12 . 5 89 88 Cannon . | . . . . . . Launcher 17 | . 4 . 12 . 1 Special . | . . . . . . Kinetic 160 | . . . . 72 88 Thermal 28 | . 6 . 5 17 . Explosive 16 | . 4 . 12 . . Electromagnetic 7 | . 6 . . . 1 Robot Hit Streak 8 | . 6 . 5 8 7 Robot Miss Streak 14 | . 3 . 2 9 14 Penetration Max . | . . . . . . Secondary Targets 4 | . . . . 2 2 Max Gunslinging Chain 1 | . . . . 1 1 Shots Hit Robots 148 | . 9 . 6 74 59 Core Hits 152 | . 11 . 21 62 58 Critical Kills . | . . . . . . Critical Parts Destroyed . | . . . . . . Critical Strikes 2 | . . . . 1 1 Burn 1 | . . . . 1 . Sever 1 | . . . . . 1 Melee Attacks 10 | . . . . . 10 Impact . | . . . . . . Slashing 10 | . . . . . 10 Piercing . | . . . . . . Sneak Attacks . | . . . . . . Combat Hostiles . | . . . . . . Follow-up Attacks . | . . . . . . Damage Inflicted 4558 | . 366 . 1105 1130 1957 Guns 2186 | . 93 . 44 1108 941 Cannons . | . . . . . . Explosions 1879 | . 273 . 1061 . 545 Melee 404 | . . . . . 404 Ramming 89 | . . . . 22 67 Kinetic 1798 | . . . . 857 941 Thermal 804 | . 38 . 44 251 471 Explosive 1334 | . 273 . 1061 . . Electromagnetic 129 | . 55 . . . 74 Impact . | . . . . . . Slashing 404 | . . . . . 404 Piercing . | . . . . . . Highest Corruption 20 | . . . 9 1 20 Average Corruption 6 | . . . 9 1 7 Corruption Purged . | . . . . . . Corruption Blocked . | . . . . . . Effects 44 | . . . 15 . 29 Message Errors 11 | . . . 2 . 9 Matter Fused 9 | . . . 2 . 7 Heat Flow Errors 7 | . . . 4 . 3 Energy Discharges 6 | . . . 2 . 4 Parts Rejected 2 | . . . . . 2 Data Loss (minor) 3 | . . . 2 . 1 Data Loss (major) 2 | . . . 2 . . Misfires 3 | . . . 1 . 2 Weapon Failures 1 | . . . . . 1 Overload Shots . | . . . . . . Overflow Damage 189 | . . . . . 189 Projectiles . | . . . . . . Explosions 56 | . . . . . 56 Melee 133 | . . . . . 133 Knockbacks 1 | . . . . . 1 Impact 1 | . . . . . 1 Kinetic . | . . . . . . Secondary . | . . . . . . Self-Inflicted Damage 251 | . . . 111 11 129 Shots 7 | . . . 5 . 2 Rammed 9 | . . . . 1 8 Targets Rammed 10 | . . . . 1 9 Kicked . | . . . . . . Crushed 1 | . . . . . 1 Highest Temperature 282 | . 120 . 178 282 162 Average Temperature 66 | . 52 . 59 148 30 Received Heat Transfer 270 | . 12 . 63 90 105 Siege Activations . | . . . . . . Robots Corrupted . | . . . . . . Combat Hostiles . | . . . . . . Parts Fried . | . . . . . . Impact Corruptions 1 | . . . . . 1 Robots Melted . | . . . . . . Combat Hostiles . | . . . . . . Parts Melted 2 | . . . . 1 1 Heat Transferred 981 | . 111 . 50 520 300 Parts Sabotaged . | . . . . . . Parts Stolen . | . . . . . . Parts Stripped . | . . . . . . Power Chain Reactions . | . . . . . . Alert | -11 -10 -10 -10 -8 -7 ------- Run | Yrd Mat Min Sub Mat Fac Peak Influence 278 | . 155 60 . 166 278 Initial 60 | . . 60 . . . Average 36 | . 51 50 . 79 72 Maximum Alert Level 1 | . . . . . 1 Low Security (%) 96 | 100 100 100 . 100 83 Level 1 3 | . . . . . 16 Level 2 . | . . . . . . Level 3 . | . . . . . . Level 4 . | . . . . . . Level 5 . | . . . . . . High Security . | . . . . . . Max Security . | . . . . . . Squads Dispatched 6 | . 1 . . 4 1 Investigation 2 | . 1 . . 1 . Extermination 1 | . . . . . 1 Reinforcement 1 | . . . . 1 . Assault . | . . . . . . Garrison 2 | . . . . 2 . Intercept . | . . . . . . Searches Triggered . | . . . . . . Construction Impeded . | . . . . . . Haulers Reinforced . | . . . . . . Active Scanning Responses . | . . . . . . Cargo Convoy Interrupts 1 | . . . . . 1 Stealth | -11 -10 -10 -10 -8 -7 --------- Run | Yrd Mat Min Sub Mat Fac Distress Signals 2 | . . . . 1 1 Communications Jammed . | . . . . . . Distress Signals . | . . . . . . Times Spotted 65 | . 6 . 16 15 28 Peak Tracking Total 10 | . 3 . 6 3 10 Tactical Retreats 2 | . . . 1 . 1 Traps | -11 -10 -10 -10 -8 -7 ------- Run | Yrd Mat Min Sub Mat Fac Traps Triggered 4 | . . . 1 . 3 Indirectly . | . . . . . . Trap Hack Attempts . | . . . . . . Triggered . | . . . . . . Disarmed . | . . . . . . Reprogrammed . | . . . . . . Reused . | . . . . . . Traps Extracted . | . . . . . . Installed . | . . . . . . Triggered . | . . . . . . Machines | -11 -10 -10 -10 -8 -7 ---------- Run | Yrd Mat Min Sub Mat Fac Machines Disabled 2 | . . . . . 2 Max in Single Turn 2 | . . . . . 2 Machines Repaired . | . . . . . . Machines Dismantled . | . . . . . . Machines Sabotaged . | . . . . . . Overloaded Fab Kills . | . . . . . . Hacking | -11 -10 -10 -10 -8 -7 --------- Run | Yrd Mat Min Sub Mat Fac Machines Accessed 8 | . 2 . . 3 3 Terminals 5 | . 1 . . 2 2 Fabricators 1 | . . . . . 1 Repair Stations . | . . . . . . Recycling Units 1 | . 1 . . . . Scanalyzers 1 | . . . . 1 . Garrison Access . | . . . . . . Total Hacks 17 | . 5 . . 7 5 Successful 7 | . . . . 4 3 Failed 10 | . 5 . . 3 2 Catastrophic 1 | . 1 . . . . Database Lockouts . | . . . . . . Manual 10 | . 2 . . 6 2 Terminals 13 | . 3 . . 6 4 Fabricators 1 | . . . . . 1 Repair Stations . | . . . . . . Recycling Units 2 | . 2 . . . . Scanalyzers 1 | . . . . 1 . Garrison Access . | . . . . . . Terminal Hacks 4 | . . . . 3 1 Open DSF 1 | . . . . . 1 Alert Level 1 | . . . . 1 . Unreport Threat 2 | . . . . 2 . Fabricator Hacks 1 | . . . . . 1 Build 1 | . . . . . 1 Repair Station Hacks . | . . . . . . Recycling Unit Hacks . | . . . . . . Scanalyzer 1 | . . . . 1 . Insert Component 1 | . . . . 1 . Garrison Access Hacks . | . . . . . . Unauthorized Hacks 1 | . . . . . 1 Terminals 1 | . . . . . 1 Botnet 1 | . . . . . 1 Fabricators . | . . . . . . Repair Stations . | . . . . . . Recycling Units . | . . . . . . Scanalyzers . | . . . . . . Garrison Access . | . . . . . . Data Cores Recovered . | . . . . . . Used . | . . . . . . Hacking Detections 5 | . 2 . . 2 1 Full Trace Events 2 | . 1 . . 1 . Feedback Events 1 | . . . . 1 . Corruption 1 | . . . . 1 . Feedback Blocked . | . . . . . . Robot Schematics Acquired . | . . . . . . Robots Built 1 | . . . . . 1 Authchips . | . . . . . . Time 81 | . . . . . 81 Total Robot Build Rating 1 | . . . . . 1 Part Schematics Acquired . | . . . . . . Parts Built . | . . . . . . Authchips . | . . . . . . Time . | . . . . . . Total Part Build Rating . | . . . . . . Parts Repaired . | . . . . . . Time . | . . . . . . Parts Recycled . | . . . . . . Recycled Matter . | . . . . . . Retrieved Matter . | . . . . . . Retrieved Components . | . . . . . . Parts Scanalyzed . | . . . . . . Part Schematics Acquired . | . . . . . . Parts Damaged . | . . . . . . Bothacking | -11 -10 -10 -10 -8 -7 ------------ Run | Yrd Mat Min Sub Mat Fac Used RIF Installer . | . . . . . . Robots Hacked . | . . . . . . Non-combat . | . . . . . . Combat . | . . . . . . Robot Hacks Applied . | . . . . . . Relay Couplers Released . | . . . . . . Fabnet Peak Effective % . | . . . . . . Robots Rewired . | . . . . . . Allies Hacked . | . . . . . . Hacks Repelled . | . . . . . . Allies | -11 -10 -10 -10 -8 -7 -------- Run | Yrd Mat Min Sub Mat Fac Total Allies 1 | . . . . . 1 Largest Group 1 | . . . . . 1 Highest-Rated Group 6 | . . . . . 6 Highest-Rated Ally 6 | . . . . . 6 Total Orders . | . . . . . . Ally Attacks . | . . . . . . Total Damage . | . . . . . . Kills . | . . . . . . Allies Corrupted . | . . . . . . Allies Melted . | . . . . . . Intel | -11 -10 -10 -10 -8 -7 ------- Run | Yrd Mat Min Sub Mat Fac Robot Analysis Total . | . . . . . . Derelict Logs Recovered . | . . . . . . Drone Launches . | . . . . . . Drone Recoveries . | . . . . . . Exploration | -11 -10 -10 -10 -8 -7 ------------- Run | Yrd Mat Min Sub Mat Fac Turns Passed 5271 | 2085 345 471 730 777 863 Spaces Moved 1583 | 337 190 184 375 240 257 Core 15 | 13 . . . . 2 Treads 1234 | 324 190 184 89 192 255 Legs . | . . . . . . Wheels 334 | . . . 286 48 . Hover . | . . . . . . Flight . | . . . . . . Fastest Speed 50 | 50 160 160 130 130 246 Average Speed 202 | 155 160 247 175 245 259 Slowest Speed 1700 | 160 160 320 320 320 1700 Overloaded Moves . | . . . . . . Propulsion Burnouts . | . . . . . . Robots Hopped . | . . . . . . Cave-ins Triggered 1 | . . . 1 . . Exploration Rate (%) 29 | 35 39 46 24 27 8 Regions Visited 5 Branch Regions 2 Pre-discovered Areas 1 | . . 1 . . . Known Exits Taken . | . . . . . . Unknown Exits Taken 5 | 1 1 1 1 1 . Scrap Searched 3 | . . 1 2 . . Spaces Dug . | . . . . . . Terrain Destroyed 99 | . 24 . 64 . 11 Melee . | . . . . . . Projectile . | . . . . . . AOE 99 | . 24 . 64 . 11 Terrain Rammed . | . . . . . . Walls Destroyed . | . . . . . . Machines Disabled . | . . . . . . Actions | -11 -10 -10 -10 -8 -7 --------- Run | Yrd Mat Min Sub Mat Fac Total 3485 | 1897 218 201 428 360 381 Wait 1668 | 1549 2 14 26 32 45 Move 1577 | 336 189 183 373 239 257 Hop . | . . . . . . Pick Up 58 | 6 9 2 9 23 9 Fast Attach . | . . . . . . Attach 49 | 6 4 . 4 15 20 Detach 10 | . 3 . . 3 4 Swap 7 | . . 1 3 2 1 Drop 16 | . 3 1 3 5 4 Fire 79 | . 8 . 9 40 22 Melee 10 | . . . . . 10 Ram 1 | . . . . 1 . Kick . | . . . . . . Crush 9 | . . . . . 9 Escape Stasis 1 | . . . 1 . . Rewire . | . . . . . . Trap . | . . . . . . Miscellaneous . | . . . . . . Route ------- -11/Scrapyard -10/Materials -10/Mines -10/Subcaves -8/Materials -7/Factory History --------- Turn | Location | Event 6 | -11/Scrapyard | Discovered new exit (range 16) 2086 | -11/Scrapyard | Entered Materials 2087 | -10/Materials | Build established: Mutant 2300 | -10/Materials | Discovered new exit (range 15) 2431 | -10/Materials | Entered Mines 2432 | -10/Mines | Learned location of Storage (-7) 2504 | -10/Mines | Met a Derelict bent on vengeance 2508 | -10/Mines | Found a hidden stash of uninstalled traps 2545 | -10/Mines | Found a damaged Exp. Sensor Array with a note attached 2548 | -10/Mines | Found Prototype Device 2886 | -10/Mines | Discovered new exit (range 8) 2902 | -10/Mines | Entered Subcaves 3156 | -10/Subcaves | Ambushed by swarm of Subdwellers 3168 | -10/Subcaves | Ambushed by Subdweller buried in earth 3200 | -10/Subcaves | A swath of the cavern ceiling suddenly collapsed 3200 | -10/Subcaves | Destroyed 7 combat bots 3223 | -10/Subcaves | Crushed by falling debris 3427 | -10/Subcaves | Shifting Twisted Machinery released Sub. Power Source 3430 | -10/Subcaves | Shifting Twisted Machinery released Sub. Power Source 3510 | -10/Subcaves | Build established: Scavenger-Mutant 3620 | -10/Subcaves | Discovered new exit (range 8) 3632 | -10/Subcaves | Entered Materials 3632 | -8/Materials | Evolved 4 slots: Propulsion x1, Utility x2, Weapon x1 3632 | -8/Materials | Identified Exp. Sensor Array 3784 | -8/Materials | Lost 4 parts (1p1n1u1w) 4070 | -8/Materials | Garrison activated, responded to threat 4170 | -8/Materials | Garrison activated, responded to threat 4174 | -8/Materials | Build established: Skirmisher 4321 | -8/Materials | Discovered new exit (range 16) 4409 | -8/Materials | Entered Factory 4409 | -7/Factory | Evolved 2 slots: Utility x1, Weapon x1 4724 | -7/Factory | Fabricated K-01 Serf (x1) 4843 | -7/Factory | Build established: Tank 5138 | -7/Factory | Cargo convoy interrupted 5151 | -7/Factory | System corruption reached 10% 5230 | -7/Factory | Lost 14 parts (1p3n6u4w) 5231 | -7/Factory | Core integrity fell below 50% 5264 | -7/Factory | Core integrity fell below 20% 5272 | -7/Factory | Destroyed by H-55 Commando with Gauss Rifle Last Messages --------------- Penetrated by Slug. IS1UE0OCBUNPO0HRJP1RMPDYPLE Slug penetrates Wall. Lgt. Treads destroyed. K-01 Serf collects debris. Lgt. Treads destroyed. K-01 Serf collects debris. Penetrated by Slug. Greatsword destroyed. Lgt. Nuclear Core destroyed. K-01 Serf collects debris. U-05 Engineer builds a Wall. K-01 Serf collects debris. Destroyed Shock Rifle. Destroyed Imp. Heat Sink. K-01 Serf collects debris. Slug penetrates Wall. System corrupted: Greatsword rejected. P-60 Hacker Remote Datajack severed. Slug penetrates Wall. Map ----- +----------------------------------------------------+ | ?????????????????????????????????????????????????? | | ?????????????????????????????????????????????????? | | ?????????????????????????????????????????????????? | | ?????????????????????????????????????????????????? | | ?????????????????????????????????????????????????? | | ?????????????????????????????????????????????????? | | ?????????????????????????????????????????????????? | | ?????????????????????????????????????????????????? | | ?????????????????????????????????????????????????? | | ?????????????????????????????????????????????????? | | ?????????????????????????????????????????????????? | | ?????????????????????????????????????????????????? | | ????????????????????????????????####?????????????? | | ???????????????????????????????? ?????????????? | | ???????????????????????????????? ??????????????? | | ???????????????????????????????? ??????????????? | | ???????????????????????????????? ???????????????? | | ???????????????????????????????? ???????????????? | | ???????????????????????????????? #???????????????? | | ???????????????# ????###########+###?????????????? | | ???????????????# ???# !=* * #?????????????? | | ???????????????# ?# =%| #???"?????????? | | ???????????????# # %! # ""?????????? | | ???????????????+ + pp = + ""?????????? | | ???????????????# #hm| k p#????""???????? | | ?????????????????????# ! @ wh #??""""??"????? | | ?????????????????????##########+####??"""? ""????? | | ??????????????????????????????#"#???? ?????? | | ????????????????????????????### #### ! ?? | | ??????????????????????????###"# # # ?????? | | ?????????????????????????#### #+#######??????????? | | ?????????????????????????# = ! #??????????? | | ?????????????????????????# = ] " #??????????? | | ?????????????????????????# " #??????????? | | ?????????????????????????# #??????????? | | ?????????????????????????# ! #??????????? | | ?????????????????????????# #??????????? | | ###??????????????????????# [ "#?????????? | | #?????????????# ?????# ! "#?????????? | | #?????????????# #????# !!! "#?????????? | | #?????????????# #????# !!%! ##?????????? | | #?????????????# #????# =* #??????????? | | " #?????????????# #????# #??????????? | | " #????????????## ############+##########??????? | | " #????????????# ?? | | #????????????# ######????????? | | " #????????????# #?????????????? | | " #????????????+ #?????????????? | | " #????????????# #?????????????? | | #????????????# ########?????????????? | +----------------------------------------------------+ Best States ------------- Heat Dissipation 48 Energy Generation 19 Energy Capacity 315 Matter Stores 300 Matter Capacity 300 Sight Range 16 Robot Scan Range 20 Terrain Scan Density 10 Armor Coverage 950 Resistance: KI 20 Utility Shielding 33 Evasion (%) 50 Recoil Reduction 3 Defensive Hacking 10 Item Schematics ----------------- None Robot Schematics ------------------ None Fabricated ------------ K-01 Serf | x1 | -7/Factory | Preloaded Alien Tech Used ----------------- None Achievements -------------- Hey, That's Mine! More Dakka Please My Command Is Your Wish Challenges ------------ None Game ------ Seed DeliveryTrackerRefractor Manual? 0 Play Time 00:34:25 Cumulative 7.7 hours Start 2024.04.05 @ 03:32:43 End 2024.04.05 @ 04:05:40 Sessions 1 Manual Loads 0 Difficulty Rogue Special Mode None Game No. 17 Rogue 17 Adventurer 0 Explorer 0 Win Type - Total 0 Types 0/0/0/0/0/0/0/0/0 Lore% 16 Gallery% 18 Achievement% 16 Wizard Run 0 Options --------- Layout 2 ASCII 0 Keyboard 0 Movement Numpad Keybinds 0 Fullscreen 1 Font 24/Smallcaps Map View 50x44 Zoom Use 0% Tactical HUD 0 Map Filters NONE Filters NONE Steam 1 RUN: 7305d276-d7d9-4f85-8f0f-c3440ab4c290